bitfinex/quotes_ETHUSD_20240825
["timestamp","ask_amount","ask_price","bid_price","bid_amount"]
[1724563492540,5.49320365,2771.9,2771.3,3.60838]
[1724563493071,9.10094365,2771.9,2771.3,3.60838]
[1724563493765,5.49320365,2771.9,2771.3,3.60838]
[1724563494179,3.97719305,2771.9,2771.3,3.60838]
[1724563494725,5.1237406,2771.9,2771.4,2.2831]
[1724563494946,3.60773,2771.9,2771.4,2.2831]
[1724563496057,1.5160106,2772.0,2771.4,3.55183046]
[1724563496357,3.60743,2772.1,2771.5,3.60806]
[1724563497459,3.60743,2772.1,2771.5,7.21613]
[1724563497658,5.03108861,2772.1,2771.5,3.60806]
[1724563499065,1.5160106,2772.2,2771.8,2.3003]
[1724563499949,1.5160106,2772.3,2771.8,2.3003]
[1724563500143,5.1231306,2772.3,2771.8,5.90806]
[1724563500502,5.1231306,2772.3,2771.8,2.3003]
[1724563500649,7.5926835,2772.3,2771.8,2.3003]
[1724563500993,7.5926835,2772.3,2771.8,5.90803]
[1724563501861,3.66922403,2772.9,2771.7,3.60781]
[1724563501862,3.40565853,2772.6,2772.2,4.87587046]
[1724563502266,1.88964793,2772.6,2772.2,4.87587046]
[1724563502466,5.19666803,2772.8,2772.2,3.60714]
[1724563502989,5.1226006,2772.7,2772.1,5.90758]
[1724563503157,0.5196778,2772.6,2772.1,5.90758]
[1724563503761,2.0356884,2772.6,2772.1,5.90758]
[1724563504080,5.6424184,2772.6,2772.1,5.90758]
[1724563508504,1.5160106,2772.6,2772.1,9.51486]
[1724563508679,1.26873046,2772.7,2772.1,9.51486]
[1724563508680,6.39133106,2772.7,2772.1,5.90758]
[1724563509402,3.8631106,2772.6,2772.1,3.60728]
[1724563510206,7.4698406,2772.6,2772.1,3.60728]
[1724563511788,3.8631106,2772.6,2772.1,3.60728]
[1724563512495,5.29401656,2772.6,2771.9,5.90786]
[1724563512701,6.39167106,2772.5,2771.9,5.90786]
[1724563513059,6.39167106,2772.5,2771.9,9.51542]
[1724563514459,1.5160106,2772.5,2772.0,3.60747]
[1724563514660,1.5160106,2772.6,2772.0,3.60747]
[1724563514914,5.1227706,2772.6,2772.0,3.60747]
[1724563515217,1.5160106,2772.5,2772.0,3.60747]
[1724563521714,5.1228706,2772.5,2772.0,3.60747]
[1724563521936,1.5160106,2772.4,2772.0,3.60747]
[1724563524031,5.1228706,2772.5,2772.0,3.60747]
[1724563525217,1.5160106,2772.5,2772.0,7.21489]
[1724563525412,1.5160106,2772.5,2772.1,2.3403]
[1724563527933,1.5160106,2772.5,2772.1,5.94767]
[1724563531938,2.34425623,2772.5,2772.1,5.94767]
[1724563532142,1.5160106,2772.4,2772.1,2.3403]
[1724563532436,1.5160106,2772.4,2772.0,3.6075]
[1724563533407,2.34425623,2772.5,2772.0,3.6075]
[1724563535443,1.5160106,2772.4,2772.0,3.6075]
[1724563539601,1.5160106,2772.3,2772.0,3.6075]
[1724563542266,1.5160106,2772.2,2772.0,3.6075]
[1724563542871,1.5160106,2772.3,2772.0,3.6075]
[1724563543159,1.5160106,2772.2,2772.0,3.6075]
[1724563549092,1.5160106,2772.2,2771.9,9.55544]
[1724563549842,1.5160106,2772.1,2771.9,9.55544]
[1724563550662,1.5160106,2772.1,2771.9,9.55541]
[1724563551055,1.5160106,2772.1,2772.0,3.6075]
[1724563551534,1.89475023,2772.1,2771.7,3.60788]
[1724563551696,1.89475023,2772.1,2771.9,2.2743]
[1724563551987,1.89475023,2772.1,2771.9,5.88193]
[1724563551988,1.51611658,2772.0,2771.9,5.88193]
[1724563552191,1.51611658,2772.1,2771.9,5.88193]
[1724563559400,1.51611658,2772.0,2771.9,5.88193]
[1724563559783,1.51611658,2772.1,2771.9,5.88193]
[1724563561482,1.51611658,2772.1,2771.9,5.88185]
[1724563565721,1.51611658,2772.1,2771.9,9.4894]
[1724563565869,1.51611658,2772.1,2771.9,5.88185]
[1724563566271,1.51611658,2772.1,2771.9,9.48941]
[1724563566472,1.51611658,2772.1,2771.9,5.88185]
[1724563567474,1.51611658,2772.1,2771.9,9.48939]
[1724563567810,1.51611658,2772.1,2771.9,5.88184]
[1724563568174,1.51611658,2772.1,2771.9,9.48939]
[1724563568493,1.51611658,2772.1,2771.9,5.88184]
[1724563568800,1.51611658,2772.1,2772.0,3.6075]
[1724563569009,1.51611658,2772.2,2772.1,7.21474]
[1724563569200,1.51611658,2772.2,2772.1,3.60737]
[1724563569400,1.51611658,2772.3,2772.1,7.21474]
[1724563569584,1.51611658,2772.3,2772.1,7.21458]
[1724563569791,1.51611658,2772.3,2772.1,3.60729]
[1724563570405,1.51611658,2772.3,2772.2,3.60724]
[1724563570989,1.51611658,2772.3,2772.2,10.52606594]
[1724563571184,1.51611658,2772.4,2772.3,3.60711]
[1724563572039,1.51611658,2772.6,2772.3,3.60711]
[1724563572226,1.51611658,2772.6,2772.4,3.60697]
[1724563573235,1.51611658,2772.6,2772.2,11.7946964]
[1724563573419,1.51611658,2772.6,2772.2,9.69918]
[1724563573761,1.51611658,2772.6,2772.3,3.60708]
[1724563574522,1.51611658,2772.5,2772.2,3.60714]
[1724563575039,1.51611658,2772.5,2772.2,7.2143]
[1724563575462,1.51611658,2772.5,2772.2,3.60714]
[1724563575742,1.51611658,2772.5,2772.2,7.21431]
[1724563576039,1.51611658,2772.5,2772.2,3.60714]
[1724563578330,1.51611658,2772.5,2772.0,7.36095046]
[1724563578500,1.51611658,2772.5,2772.0,3.60742]
[1724563578501,1.51611658,2772.4,2772.0,3.60742]
[1724563578837,1.51611658,2772.4,2771.8,6.04319]
[1724563578838,1.51611658,2772.3,2771.8,6.04319]
[1724563579038,1.51611658,2772.3,2771.9,6.60763]
[1724563579249,1.51611658,2772.3,2771.9,3.60763]
[1724563581300,1.51611658,2772.3,2772.0,3.60748]
[1724563583656,1.51611658,2772.5,2772.2,6.04274]
[1724563584320,1.51611658,2772.6,2772.2,7.31147046]
[1724563584521,1.51611658,2772.6,2772.4,3.60698]
[1724563587175,1.51611658,2772.6,2772.2,10.91852046]
[1724563587332,1.51611658,2772.6,2772.2,7.31137046]
[1724563587675,1.51611658,2772.6,2772.3,3.60707]
[1724563590474,1.51611658,2772.7,2772.3,3.60707]
[1724563592766,1.51611658,2772.7,2772.5,2.3136]
[1724563592962,0.07417743,2772.8,2772.5,5.92033]
[1724563597647,0.07417743,2772.8,2772.6,3.60671]
[1724563601368,0.07417743,2772.8,2772.5,2.3136]
[1724563601574,0.07417743,2772.8,2772.3,6.01263]
[1724563602210,0.07417743,2772.8,2772.3,6.01262]
[1724563602800,0.07417743,2772.8,2772.3,9.61965]
[1724563603353,0.07417743,2772.8,2772.3,10.70848805]
[1724563603553,0.07417743,2772.8,2772.4,3.60694]
[1724563608094,0.07417743,2772.8,2772.5,3.60684]
[1724563608678,0.07417743,2772.8,2772.5,7.21368]
[1724563608984,0.07417743,2772.8,2772.5,3.60684]
[1724563612637,1.59029401,2772.8,2772.5,3.60684]
[1724563612844,0.07417743,2772.8,2772.5,3.60684]
[1724563613046,1.59029401,2772.8,2772.5,3.60684]
[1724563618060,3.98489401,2772.8,2772.3,3.60699]
[1724563618370,1.51611658,2772.7,2772.2,3.6072]
[1724563618530,1.51611658,2772.6,2772.2,3.6072]
[1724563618724,1.51611658,2772.6,2772.3,3.6071]
[1724563618941,1.51611658,2772.7,2772.3,3.6071]
[1724563621651,1.51611658,2772.6,2772.3,3.6071]
[1724563622605,1.51611658,2772.7,2772.3,5.85884]
[1724563623806,3.98489401,2772.8,2772.3,5.85884]
[1724563624106,3.98489401,2772.8,2772.5,3.60685]
[1724563624318,1.51611658,2772.7,2772.5,3.60685]
[1724563627113,1.51611658,2772.7,2772.3,5.85879]
[1724563627613,1.51611658,2772.7,2772.4,3.60694]
[1724563632685,1.51611658,2772.6,2772.4,3.60694]
[1724563635113,1.51611658,2772.7,2772.4,3.6069]
[1724563637420,1.51611658,2772.6,2772.4,3.6069]
[1724563641094,1.96860635,2772.8,2772.5,7.70712896]
[1724563641095,1.59029401,2772.8,2772.5,7.70712896]
[1724563641292,1.59029401,2772.8,2772.7,4.87532046]
[1724563641478,0.07417743,2772.8,2772.7,4.87532046]
[1724563642191,1.59029401,2772.8,2772.7,3.60659]
[1724563642391,1.59029401,2772.8,2772.5,7.36898046]
[1724563642392,1.59029401,2772.8,2772.5,10.97571046]
[1724563642726,1.59029401,2772.8,2772.6,3.60668]
[1724563643079,1.51611658,2772.7,2772.6,3.60668]
[1724563643279,0.07417743,2772.8,2772.6,3.60668]
[1724563643280,1.59029401,2772.8,2772.6,3.60668]
[1724563643523,1.51611658,2772.7,2772.6,3.60668]
[1724563643830,0.07417743,2772.8,2772.6,3.60668]
[1724563643831,1.59029401,2772.8,2772.6,3.60668]
[1724563644333,3.96801658,2772.7,2772.2,7.21438]
[1724563644623,1.51555909,2772.6,2772.2,7.21429]
[1724563644792,1.51555909,2772.6,2772.2,7.55253517]
[1724563645192,1.51555909,2772.6,2772.2,7.21429]
[1724563645421,1.51555909,2772.6,2772.2,3.60714]
[1724563645799,1.51555909,2772.6,2772.3,3.6071]
[1724563647316,1.51555909,2772.5,2772.3,3.6071]
[1724563647938,1.51555909,2772.5,2772.2,3.60714]
[1724563648101,1.51555909,2772.5,2772.2,3.94541434]
[1724563648438,1.51555909,2772.5,2772.2,3.60714]
[1724563649741,1.51555909,2772.5,2772.3,1.26873046]
[1724563649901,1.51555909,2772.6,2772.5,3.60685]
[1724563650100,1.51555909,2772.6,2772.5,4.87558046]
[1724563650298,1.51555909,2772.7,2772.6,3.60672]
[1724563651257,1.58973652,2772.8,2772.7,3.60659]
[1724563653103,1.58973652,2772.8,2772.6,3.60672]
[1724563665679,0.07417743,2772.8,2772.7,7.36602046]
[1724563668695,0.07417743,2772.8,2772.7,4.87532046]
[1724563671043,0.07417743,2772.8,2772.7,3.60659]
[1724563672291,0.07417743,2772.8,2772.7,4.87532046]
[1724563672492,0.07417743,2772.8,2772.7,5.97259351]
[1724563673046,0.07417743,2772.8,2772.7,9.57918351]
[1724563673259,0.07417743,2772.8,2772.7,12.06988351]
[1724563681404,0.07417743,2772.8,2772.7,9.57918351]
[1724563682061,0.07417743,2772.8,2772.7,5.97259351]
[1724563682283,0.07417743,2772.8,2772.7,4.87532046]
[1724563682440,0.07417743,2772.8,2772.7,1.26873046]
[1724563687089,0.07417743,2772.8,2772.7,17.9248401]
[1724563687313,0.07417743,2772.8,2772.7,21.60937036]
[1724563687512,0.07417743,2772.8,2772.7,22.36109696]
[1724563687714,0.07417743,2772.8,2772.7,25.07065065]
[1724563687927,0.07417743,2772.8,2772.7,21.93612039]
[1724563688077,0.07417743,2772.8,2772.7,25.07011879]
[1724563688273,0.07417743,2772.8,2772.7,24.31839219]
[1724563690232,0.04062933,2772.8,2772.7,32.55066098]
[1724563691033,0.04062933,2772.8,2772.7,28.9162004]
[1724563691239,0.04062933,2772.8,2772.7,32.07092393]
[1724563691550,0.04062933,2772.8,2772.7,29.18993083]
[1724563691702,0.04062933,2772.8,2772.7,28.43572043]
[1724563692106,0.04062933,2772.8,2772.7,29.18990653]
[1724563692302,0.04062933,2772.8,2772.7,28.43572043]
[1724563692506,0.04062933,2772.8,2772.7,29.18970962]
[1724563692745,0.04062933,2772.8,2772.7,28.43572043]
[1724563692923,0.04062933,2772.8,2772.7,29.18970239]
[1724563693454,0.04062933,2772.8,2772.7,29.18953603]
[1724563696351,0.04062933,2772.8,2772.7,29.18949339]
[1724563696845,0.04062933,2772.8,2772.7,28.43567779]
[1724563697363,0.04062933,2772.8,2772.7,28.43555952]
[1724563698338,0.04062933,2772.8,2772.7,26.04399001]
[1724563698543,0.04062933,2772.8,2772.7,27.92429467]
[1724563698933,0.04062933,2772.8,2772.7,27.92430553]
[1724563699383,0.04062933,2772.8,2772.7,26.04399001]
[1724563699931,0.04062933,2772.8,2772.7,27.92429548]
[1724563700380,0.04062933,2772.8,2772.7,25.70632885]
[1724563700673,0.04062933,2772.8,2772.7,26.04402266]
[1724563701174,0.04062933,2772.8,2772.7,26.04408258]
[1724563701981,0.04062933,2772.8,2772.7,18.34805415]
[1724563703111,0.04062933,2772.8,2772.7,17.79805415]
[1724563703326,0.04062933,2772.8,2772.7,14.19146415]
[1724563703472,0.04062933,2772.8,2772.7,10.21318]
[1724563703672,0.04062933,2772.8,2772.7,8.48191046]
[1724563704590,0.04062933,2772.8,2772.7,7.21318]
[1724563705276,0.04062933,2772.8,2772.7,8.48191046]
[1724563709625,0.04062933,2772.8,2772.5,3.60676]
[1724563709914,0.04062933,2772.8,2772.6,1.26873046]
[1724563710294,0.04062933,2772.8,2772.6,4.87537046]
[1724563711736,0.04062933,2772.8,2772.6,1.26873046]
[1724563711895,2.3624,2772.7,2772.5,3.60676]
[1724563719125,2.3624,2772.7,2772.4,1.26873046]
[1724563720142,2.3624,2772.7,2772.4,4.87567046]
[1724563721446,2.3624,2772.7,2772.5,3.60685]
[1724563723344,2.3624,2772.7,2772.4,1.26873046]
[1724563724352,2.96333693,2772.7,2772.4,1.26873046]
[1724563724645,2.96333693,2772.7,2772.3,4.87573046]
[1724563724842,2.96333693,2772.7,2772.3,3.607]
[1724563725062,2.96333693,2772.7,2772.3,4.87573046]
[1724563726705,2.3708,2772.6,2772.3,4.87573046]
[1724563726905,3.03269063,2772.6,2772.3,4.87573046]
[1724563728200,3.03269063,2772.6,2772.3,8.48276046]
[1724563728201,2.3708,2772.6,2772.3,8.48276046]
[1724563728545,2.3708,2772.6,2772.3,4.87573046]
[1724563729348,2.3708,2772.6,2772.3,8.48277046]
[1724563729520,2.3708,2772.6,2772.4,3.60698]
[1724563731442,2.3708,2772.6,2772.3,3.607]
[1724563731940,2.3708,2772.6,2772.3,7.21404]
[1724563733059,2.3708,2772.6,2772.4,3.60693]
[1724563738771,2.3708,2772.6,2772.1,4.87602046]
[1724563738971,2.3708,2772.6,2772.3,3.60711]
[1724563740122,2.61194293,2772.6,2772.2,3.60717]
[1724563740393,2.61194293,2772.6,2772.1,3.60726]
[1724563740584,2.61194293,2772.6,2772.2,3.60716]
[1724563742647,3.84795293,2772.6,2771.9,7.2151]
[1724563742860,2.3101,2772.4,2772.0,3.60747]
[1724563750169,2.3101,2772.4,2772.1,3.60736]
[1724563750876,3.82565909,2772.6,2772.3,1.26873046]
[1724563751076,2.3101,2772.6,2772.3,1.26873046]
[1724563751504,2.3101,2772.6,2772.4,3.60698]
[1724563754656,2.3101,2772.6,2772.3,1.26873046]
[1724563755411,3.82565909,2772.6,2772.3,1.26873046]
[1724563756245,1.51555909,2772.6,2772.3,1.26873046]
[1724563756447,1.55618842,2772.8,2772.4,3.60689]
[1724563756607,1.51555909,2772.7,2772.4,3.60689]
[1724563759163,1.51555909,2772.7,2772.3,8.48288046]
[1724563759656,1.51555909,2772.7,2772.3,4.87577046]
[1724563760849,1.51555909,2772.7,2772.3,8.48280046]
[1724563762345,0.04062933,2772.8,2772.6,5.97172]
[1724563762545,0.04062933,2772.8,2772.6,3.60672]
[1724563762755,0.04062933,2772.8,2772.4,3.60691]
[1724563762916,1.55618842,2772.8,2772.4,3.60691]
[1724563763421,1.55618842,2772.8,2772.4,7.21382]
[1724563763622,1.55618842,2772.8,2772.4,7.2138]
[1724563764044,1.55514068,2772.8,2772.4,7.2138]
[1724563764457,1.55514068,2772.8,2772.4,7.21378]
[1724563765071,3.97665909,2772.7,2772.3,4.87581046]
[1724563766173,2.4611,2772.7,2772.3,4.87581046]
[1724563766367,2.4611,2772.7,2772.4,3.60697]
[1724563767233,4.92821271,2772.7,2772.3,3.6071]
[1724563767633,1.51555909,2772.6,2772.3,3.6071]
[1724563770065,1.51555909,2772.6,2772.0,0.33800528]
[1724563770066,3.97665909,2772.5,2772.0,3.94542528]
[1724563770270,2.2739,2772.4,2772.0,3.60741]
[1724563770584,1.51555909,2772.4,2772.0,3.60741]
[1724563772234,1.51555909,2772.4,2772.1,3.60733]
[1724563772580,1.51555909,2772.5,2772.1,4.87606046]
[1724563775080,1.51555909,2772.4,2772.1,1.26873046]
[1724563775246,1.51555909,2772.4,2772.0,3.60741]
[1724563775593,1.51555909,2772.4,2772.0,7.21483]
[1724563776396,3.84475909,2772.4,2772.0,3.60741]
[1724563776537,1.51555909,2772.3,2772.0,3.60741]
[1724563777745,3.84475909,2772.4,2772.0,3.60741]
[1724563778050,8.74691615,2772.4,2771.9,1.26873046]
[1724563778249,1.51555909,2772.3,2771.9,1.26873046]
[1724563779583,1.51555909,2772.3,2771.9,4.87636046]
[1724563779753,7.23135706,2772.4,2771.9,4.87636046]
[1724563779754,7.45175909,2772.4,2771.9,4.87636046]
[1724563786202,1.51555909,2772.3,2771.9,3.60763]
[1724563787792,5.12275909,2772.3,2771.7,7.2157]
[1724563787991,1.51555909,2772.2,2771.7,4.87654046]
[1724563788395,1.51555909,2772.2,2771.7,8.48435046]
[1724563788997,1.51555909,2772.2,2771.8,3.60772]
[1724563789332,5.12268909,2772.3,2771.8,3.60772]
[1724563789628,6.54735515,2772.3,2771.8,3.60772]
[1724563790934,6.54735515,2772.3,2771.8,7.21544]
[1724563791112,6.54735515,2772.3,2771.8,3.60772]
[1724563793017,1.51555909,2772.3,2771.9,4.87635046]
[1724563793336,1.51555909,2772.4,2772.0,6.0205]
[1724563800646,2.3633,2772.3,2771.8,3.60767]
[1724563800796,3.87885909,2772.3,2771.8,3.60767]
[1724563801160,4.49258885,2772.3,2771.8,3.60767]
[1724563801439,4.49258885,2772.3,2771.8,4.87640046]
[1724563801440,2.12928885,2772.3,2771.8,4.87640046]
[1724563801646,1.51555909,2772.4,2771.9,3.60754]
[1724563802509,1.51555909,2772.3,2771.9,3.60754]
[1724563804320,1.51555909,2772.3,2771.8,4.87640046]
[1724563805151,5.12287909,2772.2,2771.7,2.4663]
[1724563805349,5.12287909,2772.2,2771.9,1.26873046]
[1724563805556,5.12287909,2772.2,2771.7,3.73503046]
[1724563806215,5.12287909,2772.2,2771.7,7.34290046]
[1724563808250,8.54838466,2772.2,2771.7,2.4663]
[1724563808421,1.51555909,2772.1,2771.7,2.4663]
[1724563809258,1.51555909,2772.1,2771.6,7.21586]
[1724563809420,1.51555909,2772.1,2771.6,3.60792]
[1724563810019,5.12307909,2772.0,2771.5,3.60814]
[1724563810255,3.87885909,2771.9,2771.4,3.60821]
[1724563810577,1.51555909,2771.8,2771.4,3.60821]
[1724563810741,1.51555909,2771.8,2771.4,3.60819]
[1724563811966,1.51555909,2771.8,2771.3,3.73503046]
[1724563812164,1.51555909,2771.8,2771.2,3.60847]
[1724563812165,1.51555909,2771.7,2771.2,3.60847]
[1724563812480,3.87885909,2771.6,2771.0,7.21747]
[1724563812780,1.51555909,2771.5,2771.0,7.21747]
[1724563813077,3.87885909,2771.6,2771.1,3.60865]
[1724563813294,3.87885909,2771.6,2770.9,7.30060643]
[1724563813295,1.51555909,2771.5,2770.9,0.56557597]
[1724563813432,1.51555909,2771.4,2770.9,0.56557597]
[1724563813786,1.51555909,2771.4,2770.8,3.60895]
[1724563813787,3.87885909,2771.3,2770.8,3.60895]
[1724563814135,2.3633,2771.3,2770.9,3.60884]
[1724563814335,12.09097218,2771.5,2770.9,3.60884]
[1724563814648,8.48273218,2771.5,2770.9,3.60884]
[1724563816264,6.96717309,2771.5,2770.9,3.60884]
[1724563816465,6.96717309,2771.5,2770.8,4.87768046]
[1724563816672,3.60829,2771.4,2770.8,4.87768046]
[1724563818292,3.60845,2771.3,2770.8,4.87768046]
[1724563818487,3.60845,2771.3,2770.8,3.60895]
[1724563826050,6.96717309,2771.5,2770.8,4.87768046]
[1724563827228,3.60836,2771.4,2770.8,4.87768046]
[1724563829024,3.60863,2771.2,2770.7,3.60919]
[1724563829436,3.60868,2771.1,2770.5,3.60936]
[1724563829737,3.60868,2771.1,2770.4,7.17084046]
[1724563830035,5.93968,2771.1,2770.4,7.17084046]
[1724563830529,3.60894,2770.9,2770.4,7.17084046]
[1724563831528,3.60894,2770.9,2770.4,10.78034046]
[1724563831831,5.93968,2771.1,2770.6,1.26873046]
[1724563831995,3.60847,2771.3,2770.7,2.2926]
[1724563832199,3.60847,2771.3,2770.8,4.87776046]
[1724563832433,4.60385309,2771.5,2770.9,3.6089]
[1724563832739,4.42864836,2771.4,2771.0,2.2926]
[1724563833633,3.60841,2771.3,2771.0,2.2926]
[1724563833925,3.60841,2771.3,2770.7,2.2926]
[1724563834127,7.21694,2771.3,2770.7,2.2926]
[1724563834315,3.60855,2771.2,2770.7,2.2926]
[1724563835333,5.93968,2771.1,2770.5,2.2926]
[1724563836219,3.60894,2770.9,2770.5,2.2926]
[1724563836416,9.54847,2771.1,2770.5,2.2926]
[1724563837033,3.60882,2771.0,2770.5,2.2926]
[1724563839228,3.60896,2770.9,2770.5,2.2926]
[1724563842135,3.60896,2770.9,2770.3,2.2793]
[1724563842136,1.26873046,2770.8,2770.3,2.2793]
[1724563842437,4.563824,2770.9,2770.3,2.2793]
[1724563843210,3.60922,2770.7,2770.3,2.2793]
[1724563844336,3.60922,2770.7,2769.9,3.0]
[1724563844337,3.60953,2770.5,2770.1,2.2793]
[1724563844543,3.60953,2770.5,2769.8,11.51608061]
[1724563844544,3.60958,2770.4,2769.9,2.2793]
[1724563845662,3.60958,2770.4,2769.9,5.88952]
[1724563851123,4.87815046,2770.6,2769.9,5.88952]
[1724563851380,3.60947,2770.5,2769.9,5.88952]
[1724563853487,7.21903,2770.5,2769.9,5.88952]
[1724563853663,3.60961,2770.4,2769.9,2.2793]
[1724563853976,3.60972,2770.3,2769.7,5.88979]
[1724563854827,4.70118205,2770.3,2769.8,3.61036]
[1724563855545,1.09146205,2770.3,2769.8,3.61036]
[1724563855745,7.30490046,2770.5,2769.8,3.61036]
[1724563855959,10.91446046,2770.5,2769.9,3.61022]
[1724563856454,10.91444046,2770.5,2769.9,3.61022]
[1724563858132,3.60959,2770.4,2769.8,3.61036]
[1724563858332,3.60972,2770.3,2769.8,3.61036]
[1724563858767,7.21953,2770.3,2769.7,2.2793]
[1724563858928,3.60972,2770.3,2769.7,2.2793]
[1724563859377,3.60972,2770.3,2769.7,5.88978]
[1724563861788,7.21953,2770.3,2769.7,5.88978]
[1724563862141,4.70121605,2770.3,2769.7,5.88978]
[1724563863489,4.70121605,2770.3,2769.7,2.2793]
[1724563863490,3.60997,2770.2,2769.7,2.2793]
[1724563863637,6.05697,2770.2,2769.7,2.2793]
[1724563863838,3.60999,2770.1,2769.7,2.2793]
[1724563864795,3.60999,2770.1,2769.5,2.3047]
[1724563864963,0.605699,2770.0,2769.5,5.91544]
[1724563865500,3.60999,2770.1,2769.5,5.91544]
[1724563866054,3.60999,2770.1,2769.6,3.6106]
[1724563867291,7.22005,2770.1,2769.6,3.6106]
[1724563867439,3.60999,2770.1,2769.4,7.18421046]
[1724563867640,3.60999,2770.1,2769.5,3.61068]
[1724563867879,4.70354005,2770.1,2769.5,3.61068]
[1724563868983,3.61013,2770.0,2769.4,5.91548]
[1724563870567,3.61013,2770.0,2769.4,9.52629]
[1724563871045,3.61013,2770.0,2769.4,5.91548]
[1724563872686,3.61013,2770.0,2769.4,9.52629]
[1724563873642,3.61013,2770.0,2769.4,9.52628]
[1724563874097,6.05726,2769.9,2769.3,1.8346097]
[1724563874304,6.05726,2769.9,2769.3,5.4455497]
[1724563874596,6.05726,2769.9,2769.3,4.17681924]
[1724563874744,6.05726,2769.9,2769.3,3.61094]
[1724563875138,3.61037,2769.8,2769.2,5.91575]
[1724563875394,4.6847397,2769.8,2769.2,9.52681]
[1724563875548,4.6847397,2769.8,2769.2,5.91575]
[1724563875746,4.6847397,2769.8,2769.2,9.52683]
[1724563876050,1.0743697,2769.8,2769.3,1.26873046]
[1724563876275,6.05726,2769.9,2769.3,1.26873046]
[1724563877162,6.05726,2769.9,2769.4,3.61084]
[1724563883401,5.98684,2770.1,2769.5,5.93145]
[1724563883698,5.98684,2770.1,2769.5,7.20018046]
[1724563884143,9.59691,2770.1,2769.5,7.20018046]
[1724563884361,3.61013,2770.0,2769.5,3.58953046]
[1724563884547,11.58102996,2770.1,2769.5,7.20026046]
[1724563885920,3.61011,2770.0,2769.5,7.20026046]
[1724563886115,3.89235909,2770.1,2769.6,3.61062]
[1724563886315,5.12540909,2770.2,2769.6,3.61053]
[1724563886500,5.12540909,2770.2,2769.6,7.22107]
[1724563886705,3.60985,2770.2,2769.6,7.22107]
[1724563886932,3.60985,2770.2,2769.6,3.61053]
[1724563887135,3.60985,2770.2,2769.6,7.22107]
[1724563887354,3.60985,2770.2,2769.6,7.22108]
[1724563887817,3.60985,2770.2,2769.6,3.61053]
[1724563888163,3.60985,2770.2,2769.7,7.19995046]
[1724563888358,5.12540909,2770.2,2769.7,7.19995046]
[1724563888524,3.61007,2770.1,2769.5,4.87939046]
[1724563888725,5.12562909,2770.1,2769.5,4.87939046]
[1724563889066,3.60997,2770.1,2769.6,3.61062]
[1724563889359,5.12552909,2770.1,2769.6,3.61062]
[1724563889570,1.51555909,2770.1,2769.6,3.61062]
[1724563889780,1.51555909,2770.3,2770.1,3.60995]
[1724563889958,5.98617,2770.6,2770.4,2.3208]
[1724563889959,1.51555909,2770.6,2770.4,2.3208]
[1724563890272,1.51555909,2770.8,2770.5,1.26873046]
[1724563890478,1.51555909,2770.9,2770.5,1.26873046]
[1724563890777,5.12456909,2770.9,2770.5,1.26873046]
[1724563891084,3.60909,2770.8,2770.4,2.3208]
[1724563891374,5.12464909,2770.8,2770.4,2.3208]
[1724563891558,3.60909,2770.8,2770.4,2.3208]
[1724563891742,1.51555909,2770.9,2770.4,2.3208]
[1724563892786,5.12457909,2770.9,2770.4,2.3208]
[1724563892976,1.06248725,2770.8,2770.4,2.3208]
[1724563893640,8.73334909,2771.0,2770.5,1.26873046]
[1724563893840,3.60896,2770.9,2770.5,1.26873046]
[1724563894268,3.60896,2770.9,2770.4,2.3208]
[1724563894585,5.12451909,2770.9,2770.4,2.3208]
[1724563896268,3.60896,2770.9,2770.4,2.3208]
[1724563896476,0.87333891,2770.8,2770.4,2.3208]
[1724563899875,5.12442909,2771.0,2770.4,9.53986]
[1724563900075,5.12442909,2771.0,2770.4,9.53978]
[1724563900283,3.60887,2771.0,2770.4,9.53978]
[1724563900785,1.51555909,2771.1,2770.4,5.93029]
[1724563900945,5.12397909,2771.3,2770.8,2.4394]
[1724563901135,3.60859,2771.2,2770.8,2.4394]
[1724563901778,7.21723,2771.2,2770.8,2.4394]
[1724563901986,3.60859,2771.2,2770.8,2.4394]
[1724563902187,7.21724,2771.2,2770.8,2.4394]
[1724563902343,5.42282042,2771.2,2770.8,2.4394]
[1724563903945,1.81423042,2771.2,2770.8,2.4394]
[1724563904690,5.42280042,2771.2,2770.8,2.4394]
[1724563904856,9.03143042,2771.2,2770.6,2.4394]
[1724563905273,0.47477802,2771.1,2770.6,6.0487]
[1724563907021,0.47477802,2771.1,2770.6,9.65794]
[1724563907298,1.26873046,2771.3,2770.8,3.60905]
[1724563908779,4.87716046,2771.3,2770.8,3.60905]
[1724563909079,3.60843,2771.3,2770.9,2.4394]
[1724563909662,11.06835,2771.4,2770.9,2.4394]
[1724563909889,13.82336137,2771.4,2770.9,6.04828]
[1724563911455,6.36336137,2771.4,2770.9,6.04828]
[1724563912005,6.36336137,2771.4,2770.9,2.4394]
[1724563915581,6.36336137,2771.4,2770.9,6.04833]
[1724563917264,9.97177137,2771.4,2770.9,6.04833]
[1724563917513,0.99717714,2771.3,2770.9,6.04833]
[1724563917713,4.87708046,2771.4,2770.9,6.04833]
[1724563920469,4.87708046,2771.4,2770.9,2.4394]
[1724563922116,3.60835,2771.4,2770.9,2.4394]
[1724563922323,4.87682046,2771.6,2770.9,6.04825]
[1724563922607,3.60817,2771.5,2770.9,6.04825]
[1724563923422,3.60834,2771.4,2770.9,2.4394]
[1724563927321,3.60834,2771.4,2770.9,6.04825]
[1724563929983,7.21672,2771.4,2770.9,2.4394]
[1724563930184,3.60834,2771.4,2770.9,2.4394]
[1724563930913,7.21675,2771.4,2770.9,2.4394]
[1724563931227,1.03853551,2771.3,2770.9,2.4394]
[1724563933488,2.5540946,2771.3,2770.9,2.4394]
[1724563934495,2.5540946,2771.3,2770.9,6.04833]
[1724563935429,1.51555909,2771.2,2770.9,6.04833]
[1724563936127,1.51555909,2771.3,2770.9,6.04833]
[1724563939229,1.51555909,2771.2,2770.9,6.04833]
[1724563940554,1.51555909,2771.2,2771.0,3.60871]
[1724563940838,1.51555909,2771.3,2771.1,2.2985]
[1724563941048,1.51555909,2771.4,2771.2,3.60853]
[1724563941399,1.51555909,2771.3,2771.2,3.60853]
[1724563942138,1.51555909,2771.4,2771.3,2.2985]
[1724563945435,1.89340294,2771.4,2771.3,2.2985]
[1724563945952,1.89340294,2771.5,2771.3,2.2985]
[1724563946441,1.89340294,2771.4,2771.3,2.2985]
[1724563946646,1.89340294,2771.5,2771.3,5.90679]